[Event "8th Brazilian Open SESC Caioba 2024"]
[Site "Caioba"]
[Date "2024.06.26"]
[Round "4.9"]
[White "Luz, Arthur Nader"]
[Black "Acosta, Pablo Ismael"]
[Result "0-1"]
[ECO "B07"]
[WhiteElo "2172"]
[BlackElo "2449"]
[Annotator "TA"]
[PlyCount "82"]
[EventDate "2024.06.15"]
[EventCountry "BRA"]
[SourceTitle "playchess.com"]
[Source "ChessBase"]
[SourceQuality "1"]
[TimeControl "5400+30"]

{[%evp 9,82,8,22,20,27,25,50,52,102,97,99,78,100,94,96,85,73,92,75,84,83,76,119,92,89,64,73,62,62,72,96,14,22,0,30,16,6,-70,-58,-58,-51,-62,-56,-82,0,0,42,19,147,-45,0,0,0,0,0,0,0,-113,-55,-64,-71,-72,-54,-83,-91,-253,-277,-718,-714,-665,-508,-496,-462,-29992,-29993]} 1. e4 {[%emt 0:09:01]} d6 {[%emt 0:02:00]} 2. d4 {[%emt 0:00:30]} Nf6 {[%emt 0:00:06]} 3. Nc3 {[%emt 0:00:18]} Nbd7 {[%emt 0:00:14]} 4. Be3 {[%emt 0:01:30]} e5 {[%emt 0:00:35]} 5. h3 {[%emt 0:00:27]} Be7 {[%emt 0:00:42]} 6. Nge2 {[%emt 0:00:49]} c6 {[%emt 0:00:29]} 7. g4 {[%emt 0:00:16][%cal Bg2g4,Bg4g5][%mdl 32]} Nb6 {[%emt 0:03:00]} 8. Ng3 {[%emt 0:01:17] White is slightly better.} Be6 {[%emt 0:00:08]} (8... O-O $14) 9. g5 $16 {[%emt 0:07:28]} Ng8 {[%emt 0:03:58]} 10. d5 {[%emt 0:06:24]} Bd7 {[%emt 0:00:17]} 11. Qd2 {[%emt 0:07:45]} h6 {[%emt 0:01:56]} 12. h4 {[%emt 0:01:40]} hxg5 {[%emt 0:10:02]} 13. hxg5 {[%emt 0:00:05]} Rxh1 {[%emt 0:00:08]} 14. Nxh1 {[%emt 0:00:04]} Bg4 {[%emt 0:01:31]} 15. Ng3 {[%emt 0:00:59]} g6 {[%emt 0:02:45]} 16. Bd3 {[%emt 0:02:43]} Rc8 {[%emt 0:04:50]} 17. a4 {[%emt 0:07:08]} cxd5 {[%emt 0:06:13]} 18. Nxd5 {[%emt 0:00:45]} Nxd5 {[%emt 0:02:13]} 19. exd5 {[%emt 0:01:28][%cal Od3e4]} Bf3 {[%emt 0:00:10]} 20. Ne4 {[%emt 0:07:58]} (20. Bxa7 Bxg5 (20... Bxd5 21. Bxg6 Bc6 22. Bf5 $16) 21. Qb4 Nf6 (21... Bxd5 22. Be4 $11) 22. Qxb7 Bxd5 (22... Nxd5 $2 23. Be4 $16) 23. Qb5+ Qd7 24. Qxd7+ Nxd7 $17 (24... Kxd7 25. a5 $14)) (20. Be4 $16 Bxe4 21. Nxe4) 20... Kf8 $11 {[%emt 0:04:42]} 21. Ng3 {[%emt 0:17:27]} (21. Bxa7 $2 Bxe4 22. Bxe4 Bxg5 $19) 21... a6 {[%emt 0:05:03][%cal Od8d7]} 22. b3 {[%emt 0:01:08]} Bxd5 {[%emt 0:07:57]} 23. c4 {[%emt 0:03:32]} (23. Bxg6 $11 fxg6 24. Qxd5) 23... Bc6 $15 {[%emt 0:01:23]} 24. Be4 {[%emt 0:05:23]} Qd7 {[%emt 0:01:38]} 25. Rd1 {[%emt 0:05:07][%cal Oc4c5]} Qh3 {[%emt 0:04:20] aiming for ...Bxe4.} 26. Bd5 {[%emt 0:01:14]} Kg7 {[%emt 0:04:55]} ({Black should play} 26... f5 $17 27. gxf6 Nxf6 28. Bxc6 Rxc6 (28... bxc6 29. Bg5 $15)) 27. Ne4 $11 {[%emt 0:02:49]} Bd7 {[%emt 0:00:47]} 28. Nxd6 {[%emt 0:03:15]} Bxd6 {[%emt 0:03:34] [#]} (28... Rf8 $1 $11 {remains equal.}) 29. Bxb7 $2 {[%emt 0:01:08]} (29. Be4 $1 $16 Bg4 30. Qxd6) 29... Bc6 {[%emt 0:07:28] Hoping for ...Qh1+.} 30. Qxd6 {[%emt 0:00:19]} (30. Bxc8 $2 Qh1+ 31. Ke2 Bf3+ 32. Kd3 Bxd1 $19) 30... Bxb7 {[%emt 0:00:07]} 31. Qxe5+ {[%emt 0:00:05]} f6 $1 {[%emt 0:01:53]} 32. gxf6+ {[%emt 0:00:15]} Kf7 $1 {[%emt 0:00:03][%cal Ob7f3] And now ...Bf3! would win.} 33. Rd4 {[%emt 0:01:46]} (33. Rd6 $11) 33... Qe6 {[%emt 0:03:54] Really sharp!} ({Better is} 33... Nxf6 $17 {White must now prevent ...Re8.} 34. Kd2 Re8 35. Qc7+ Re7) 34. Qf4 {[%emt 0:02:36]} Nxf6 {[%emt 0:01:28]} 35. Rd6 {[%emt 0:01:20]} Qe7 {[%emt 0:03:09][%cal Og6g5]} (35... g5 {feels hotter.} 36. Qd4 Qf5 37. Kd1 Rc6) 36. Qd4 {[%emt 0:00:38]} Rc6 {[%emt 0:04:47]} 37. Rd8 {[%emt 0:01:15] Loses the game.} (37. Rxc6 $17 {was the only chance.} Bxc6 38. Ke2) 37... Qb4+ $19 {[%emt 0:01:25]} 38. Bd2 $2 {[%emt 0:00:41]} (38. Qd2 Qxb3 39. Rd7+ Ke6 (39... Nxd7 40. Qxd7+ Kf6 41. Bd4+ Kg5 42. Qd5+ Kh4 43. Qe4+ Kh3 44. Qh1+ Kg4 45. Qg2+ Kh4 46. Qe4+ Kh5 47. Qh1+ Kg4 48. Qg2+ Kh4 49. Qe4+ $11) 40. Rd4) 38... Re6+ {[%emt 0:00:38]} 39. Kf1 {[%emt 0:00:54]} Qxb3 {[%emt 0:00:05] ( -> ...Qd1+)} 40. Be3 {[%emt 0:00:22]} Bf3 {[%emt 0:00:54]} ({But not} 40... Qxa4 41. Qf4) ({Don't take} 40... Qb1+ 41. Qd1 Qe4 42. Qd3) 41. Qa1 {[%emt 0:00:39] [#] Wards off Qb1+} (41. Qf4 $19 Qb1+ 42. Bc1) 41... Qxc4+ {[%emt 0:09:33] Weighted Error Value: White=0.56/Black=0.17 (very precise) .  Loses game:     	White=1     	---        Mistake:       	White=6     	Black=4      Inaccurate:     	White=2     	Black=4      OK:         	White=7     	Black=16     Best:        	White=5     	Black=3      Strong:       	---       	Black=2} 0-1

[Event "8th Brazilian Open SESC Caioba 2024"]
[Site "Caioba"]
[Date "2024.06.26"]
[Round "4.10"]
[White "Borges, Guilherme Deola"]
[Black "Sunye Neto, Jaime"]
[Result "1/2-1/2"]
[ECO "B22"]
[WhiteElo "2151"]
[BlackElo "2398"]
[Annotator "RC"]
[PlyCount "119"]
[EventDate "2024.06.15"]
[EventCountry "BRA"]
[SourceTitle "playchess.com"]
[Source "ChessBase"]
[SourceQuality "1"]
[TimeControl "5400+30"]

1. e4 {[%emt 0:00:08]} c5 {[%emt 0:00:11]} 2. c3 {[%emt 0:00:25]} Nf6 {[%emt 0:03:00]} 3. e5 {[%emt 0:00:08]} Nd5 {[%emt 0:00:06]} 4. Nf3 {[%emt 0:00:06]} e6 {[%emt 0:00:33]} 5. d4 {[%emt 0:00:20]} cxd4 {[%emt 0:00:32]} 6. cxd4 {[%emt 0:00:07]} d6 {[%emt 0:00:37]} 7. Bd3 {[%emt 0:00:54]} Nc6 {[%emt 0:04:36]} 8. Nc3 {[%emt 0:00:22]} Be7 {[%emt 0:24:38]} 9. Qe2 {[%emt 0:04:06]} Nxc3 {[%emt 0:05:59]} 10. bxc3 {[%emt 0:00:08]} dxe5 {[%emt 0:00:52]} 11. dxe5 {[%emt 0:05:54]} Qc7 {[%emt 0:04:03]} 12. O-O {[%emt 0:04:47]} b6 {[%emt 0:01:06]} 13. Re1 {[%emt 0:04:22]} Bb7 {[%emt 0:00:23]} 14. h4 {[%emt 0:04:26]} h6 {[%emt 0:02:29]} 15. Qe4 {[%emt 0:12:10]} O-O-O {[%emt 0:02:13]} 16. Qe2 {[%emt 0:05:35]} Kb8 {[%emt 0:04:35]} 17. a4 {[%emt 0:05:31]} Na5 {[%emt 0:06:18]} 18. Ba3 {[%emt 0:07:16]} Bxa3 {[%emt 0:07:59]} 19. Rxa3 {[%emt 0:00:03]} Qc5 {[%emt 0:00:15]} 20. Rea1 {[%emt 0:03:05]} g5 {[%emt 0:04:44]} 21. Be4 {[%emt 0:04:26]} Qc4 {[%emt 0:00:22]} 22. Qxc4 {[%emt 0:01:04]} Nxc4 {[%emt 0:00:08]} 23. Bxb7 {[%emt 0:00:07]} Kxb7 {[%emt 0:02:24]} 24. Rb3 {[%emt 0:00:20]} g4 {[%emt 0:02:40]} 25. Nd4 {[%emt 0:00:38]} Rd5 {[%emt 0:00:48]} 26. Rb5 {[%emt 0:03:05]} Rhd8 {[%emt 0:01:08]} 27. a5 {[%emt 0:06:51]} Rxb5 {[%emt 0:02:34]} 28. a6+ {[%emt 0:00:07]} Kb8 {[%emt 0:00:46]} 29. Nxb5 {[%emt 0:00:04]} Nxe5 {[%emt 0:00:28]} 30. Kh2 {[%emt 0:00:40]} Rd5 {[%emt 0:01:02]} 31. Rb1 {[%emt 0:01:03]} f5 {[%emt 0:01:09]} 32. Nd4 {[%emt 0:00:47]} Rd6 {[%emt 0:02:53]} 33. Re1 {[%emt 0:05:09]} Nd3 {[%emt 0:00:15]} 34. Rxe6 {[%emt 0:00:16]} Rxe6 {[%emt 0:00:56]} 35. Nxe6 {[%emt 0:00:02]} f4 {[%emt 0:01:30]} 36. f3 {[%emt 0:06:28]} g3+ {[%emt 0:00:20]} 37. Kg1 {[%emt 0:00:07]} Kc8 {[%emt 0:02:43]} 38. h5 {[%emt 0:01:52]} Kd7 {[%emt 0:01:32]} 39. Nd4 {[%emt 0:00:11]} Nc5 {[%emt 0:00:35]} 40. Nb5 {[%emt 0:09:13]} Nxa6 {[%emt 0:00:18]} 41. Nxa7 {[%emt 0:00:05]} Nc7 {[%emt 0:00:12]} 42. c4 {[%emt 0:01:12]} Kd6 {[%emt 0:02:30]} 43. Kf1 {[%emt 0:00:34]} Kc5 {[%emt 0:00:10]} 44. Nc8 {[%emt 0:00:06]} Ne6 {[%emt 0:00:44]} 45. Ke2 {[%emt 0:00:16]} Kxc4 {[%emt 0:05:30]} 46. Nxb6+ {[%emt 0:00:06]} Kd4 {[%emt 0:00:09]} 47. Nd7 {[%emt 0:00:26]} Ng7 {[%emt 0:01:53]} 48. Nf6 {[%emt 0:01:23]} Nf5 {[%emt 0:00:57]} 49. Ng4 {[%emt 0:03:28]} Kc3 {[%emt 0:03:15]} 50. Kf1 {[%emt 0:05:31]} Kd2 {[%emt 0:00:00]} 51. Ne5 {[%emt 0:00:00]} Ne3+ {[%emt 0:00:00]} 52. Kg1 {[%emt 0:00:00]} Ke2 {[%emt 0:00:00]} 53. Ng4 {[%emt 0:00:00]} Nxg4 {[%emt 0:00:00]} 54. fxg4 {[%emt 0:00:00]} Ke1 {[%emt 0:00:00]} 55. g5 {[%emt 0:00:03]} hxg5 {[%emt 0:00:00]} 56. h6 {[%emt 0:00:02]} g4 {[%emt 0:00:00]} 57. h7 {[%emt 0:00:04]} f3 {[%emt 0:00:00]} 58. gxf3 {[%emt 0:00:10]} gxf3 {[%emt 0:00:00]} 59. h8=Q {[%emt 0:00:04]} f2+ {[%emt 0:00:08]} 60. Kg2 {[%emt 0:00:03]} 1/2-1/2

[Event "8th Brazilian Open SESC Caioba 2024"]
[Site "Caioba"]
[Date "2024.06.26"]
[Round "4.11"]
[White "Rodriguez Vila, Andres"]
[Black "Starke, Bruno Orlando"]
[Result "1-0"]
[ECO "B21"]
[WhiteElo "2396"]
[BlackElo "2165"]
[Annotator "RC"]
[PlyCount "93"]
[EventDate "2024.06.15"]
[EventCountry "BRA"]
[SourceTitle "playchess.com"]
[Source "ChessBase"]
[SourceQuality "1"]
[TimeControl "5400+30"]

1. e4 {[%emt 0:13:50]} c5 {[%emt 0:00:30]} 2. Nf3 {[%emt 0:00:05]} Nc6 {[%emt 0:00:30]} 3. d4 {[%emt 0:00:26]} cxd4 {[%emt 0:00:07]} 4. c3 {[%emt 1:18:09]} d3 {[%emt 0:03:33]} 5. Bxd3 {[%emt 0:00:00]} d6 {[%emt 0:01:43]} 6. O-O {[%emt 0:00:00]} Nf6 {[%emt 0:03:33]} 7. h3 {[%emt 0:00:00]} g6 {[%emt 0:06:21]} 8. c4 {[%emt 0:00:00]} Bg7 {[%emt 0:00:27]} 9. Nc3 {[%emt 0:00:00]} O-O {[%emt 0:00:23]} 10. Bg5 {[%emt 0:00:00]} Nd7 {[%emt 0:03:27]} 11. Rc1 {[%emt 0:00:00]} Nde5 {[%emt 0:09:52]} 12. Nxe5 {[%emt 0:00:00]} dxe5 {[%emt 0:02:46]} 13. Nd5 {[%emt 0:00:00]} h6 {[%emt 0:02:07]} 14. Be3 {[%emt 0:00:00]} e6 {[%emt 0:05:14]} 15. Nc3 {[%emt 0:00:00]} Nd4 {[%emt 0:03:15]} 16. b4 {[%emt 0:00:00]} b6 {[%emt 0:05:35]} 17. Qd2 {[%emt 0:00:00]} Kh7 {[%emt 0:10:43]} 18. Rfd1 {[%emt 0:00:00]} Bb7 {[%emt 0:02:04]} 19. Qb2 {[%emt 0:00:00]} f5 {[%emt 0:05:39]} 20. f3 {[%emt 0:00:00]} Qh4 {[%emt 0:03:17]} 21. c5 {[%emt 0:00:00]} bxc5 {[%emt 0:00:45]} 22. bxc5 {[%emt 0:00:00]} Bc6 {[%emt 0:00:52]} 23. Rf1 {[%emt 0:00:00]} Rad8 {[%emt 0:06:15]} 24. Bb1 {[%emt 0:00:00]} Bf6 {[%emt 0:06:15]} 25. Kh1 {[%emt 0:00:00]} Bg5 {[%emt 0:01:28]} 26. Bxg5 {[%emt 0:00:00]} hxg5 {[%emt 0:03:01]} 27. Qf2 {[%emt 0:00:00]} Rb8 {[%emt 0:01:58]} 28. Qxh4+ {[%emt 0:00:00]} gxh4 {[%emt 0:00:01]} 29. Rfe1 {[%emt 0:00:00]} Rfe8 {[%emt 0:01:07]} 30. Nd1 {[%emt 0:00:00]} Kg7 {[%emt 0:01:45]} 31. Ne3 {[%emt 0:00:00]} Rb5 {[%emt 0:01:33]} 32. Nc4 {[%emt 0:00:00]} Reb8 {[%emt 0:04:25]} 33. Nxe5 {[%emt 0:00:00]} Rb2 {[%emt 0:01:46]} 34. Rcd1 {[%emt 0:00:00]} Kf6 {[%emt 0:00:50]} 35. exf5 {[%emt 0:00:00]} gxf5 {[%emt 0:00:56]} 36. Bd3 {[%emt 0:00:00]} Rg8 {[%emt 0:02:33]} 37. Bf1 {[%emt 0:00:00]} Rd8 {[%emt 0:01:49]} 38. Bc4 {[%emt 0:00:00]} Ba4 {[%emt 0:00:26]} 39. Rd3 {[%emt 0:00:00]} Rg8 {[%emt 0:00:33]} 40. Rxd4 {[%emt 0:00:00]} Rgxg2 {[%emt 0:00:11]} 41. Bf1 {[%emt 0:00:00]} Rh2+ {[%emt 0:00:13]} 42. Kg1 {[%emt 0:00:00]} Bb5 {[%emt 0:00:36]} 43. Nd3 {[%emt 0:00:00]} Rxa2 {[%emt 0:00:37]} 44. Nf4 {[%emt 0:00:00]} Bxf1 {[%emt 0:00:28]} 45. Rxe6+ {[%emt 0:00:00]} Kf7 {[%emt 0:00:58]} 46. Rd7+ {[%emt 0:00:00]} Kf8 {[%emt 0:00:10]} 47. Ng6+ {[%emt 0:00:00]} 1-0

[Event "8th Brazilian Open SESC Caioba 2024"]
[Site "Caioba"]
[Date "2024.06.26"]
[Round "4.12"]
[White "Federzoni, Enzo"]
[Black "Schnaider, Ilan"]
[Result "0-1"]
[ECO "B13"]
[WhiteElo "2164"]
[BlackElo "2395"]
[Annotator "RC"]
[PlyCount "86"]
[EventDate "2024.06.15"]
[EventCountry "BRA"]
[SourceTitle "playchess.com"]
[Source "ChessBase"]
[SourceQuality "1"]
[TimeControl "5400+30"]

1. d4 {[%emt 0:06:19]} d5 {[%emt 0:00:35]} 2. Nc3 {[%emt 0:00:07]} Nf6 {[%emt 0:01:02]} 3. Bf4 {[%emt 0:00:09]} c5 {[%emt 0:00:08]} 4. e3 {[%emt 0:00:08]} cxd4 {[%emt 0:01:29]} 5. exd4 {[%emt 0:00:23]} a6 {[%emt 0:00:24]} 6. Nf3 {[%emt 0:00:17]} Nc6 {[%emt 0:00:37]} 7. Ne5 {[%emt 0:07:01]} Bd7 {[%emt 0:00:53]} 8. Be2 {[%emt 0:03:00]} e6 {[%emt 0:02:09]} 9. O-O {[%emt 0:03:39]} Qb6 {[%emt 0:03:33]} 10. Nxc6 {[%emt 0:00:45]} Bxc6 {[%emt 0:00:27]} 11. Rb1 {[%emt 0:00:20]} Be7 {[%emt 0:05:38]} 12. Re1 {[%emt 0:00:41]} O-O {[%emt 0:01:24]} 13. Bd3 {[%emt 0:00:57]} Nd7 {[%emt 0:13:29]} 14. Ne2 {[%emt 0:05:01]} Bb5 {[%emt 0:01:32]} 15. c3 {[%emt 0:01:22]} Bxd3 {[%emt 0:01:20]} 16. Qxd3 {[%emt 0:00:01]} Rac8 {[%emt 0:00:36]} 17. Qg3 {[%emt 1:08:50]} Qd8 18. Nc1 b5 19. Nd3 a5 20. a3 Re8 21. Bd6 Rc6 22. Bxe7 Qxe7 23. Re2 h6 24. Rbe1 Rec8 25. h3 Rb6 26. Re3 Nf6 27. f3 Ne8 28. Nf4 Qc7 29. Kh2 {[%emt 0:00:00]} Nd6 30. Nd3 {[%emt 0:00:00]} Qe7 31. R3e2 {[%emt 0:00:00]} Nc4 32. Kg1 {[%emt 0:00:00]} Qf6 33. Qg4 {[%emt 0:00:00]} Rc7 34. Nf4 {[%emt 0:00:00]} b4 35. axb4 {[%emt 0:00:00]} axb4 36. h4 {[%emt 0:00:00]} Kh7 37. h5 {[%emt 0:00:00]} bxc3 38. bxc3 {[%emt 0:00:00]} Rb3 39. Nxe6 {[%emt 0:00:00]} fxe6 40. Rxe6 {[%emt 0:00:00]} Qg5 41. Re8 {[%emt 0:00:00]} Qxg4 42. fxg4 {[%emt 0:00:00]} Rxc3 43. Rd8 {[%emt 0:00:00]} Ne3 0-1

[Event "8th Brazilian Open SESC Caioba 2024"]
[Site "Caioba"]
[Date "2024.06.26"]
[Round "4.13"]
[White "Do Valle Cardoso, Lucas"]
[Black "Calcado, Acyr Rogerio"]
[Result "1-0"]
[ECO "B43"]
[WhiteElo "2356"]
[BlackElo "2134"]
[Annotator "RC"]
[PlyCount "41"]
[EventDate "2024.06.15"]
[EventCountry "BRA"]
[SourceTitle "playchess.com"]
[Source "ChessBase"]
[SourceQuality "1"]
[TimeControl "5400+30"]

1. e4 {[%emt 0:03:07]} c5 {[%emt 0:00:13]} 2. Nf3 {[%emt 0:00:05]} e6 {[%emt 0:00:07]} 3. d4 {[%emt 0:00:06]} cxd4 {[%emt 0:00:10]} 4. Nxd4 {[%emt 0:00:03]} a6 {[%emt 0:00:11]} 5. Nc3 {[%emt 0:00:10]} Qc7 {[%emt 0:00:11]} 6. Be3 {[%emt 0:00:06]} Nf6 {[%emt 0:00:29]} 7. g4 {[%emt 0:08:35]} Bb4 {[%emt 0:04:34]} 8. f3 {[%emt 0:00:11]} d6 {[%emt 0:20:50]} 9. Qd2 {[%emt 0:05:21]} b5 {[%emt 0:11:24]} 10. O-O-O {[%emt 0:03:50]} Bb7 {[%emt 0:04:40]} 11. a3 {[%emt 0:08:27]} Bxc3 {[%emt 0:00:14]} 12. Qxc3 {[%emt 0:00:43]} Qxc3 {[%emt 0:00:04]} 13. bxc3 {[%emt 0:00:09]} Ke7 {[%emt 0:02:06]} 14. c4 {[%emt 0:05:01]} bxc4 {[%emt 0:00:22]} 15. Bxc4 {[%emt 0:00:05]} d5 {[%emt 0:01:01]} 16. exd5 {[%emt 0:00:26]} Nxd5 {[%emt 0:00:16]} 17. Nf5+ {[%emt 0:02:00]} exf5 {[%emt 0:04:01]} 18. Bxd5 {[%emt 0:00:59]} Bxd5 {[%emt 0:01:11]} 19. Rxd5 {[%emt 0:00:11]} f6 {[%emt 0:05:35]} 20. gxf5 {[%emt 0:02:59]} g6 {[%emt 0:08:58]} 21. Bd4 {[%emt 0:03:53]} 1-0

[Event "8th Brazilian Open SESC Caioba 2024"]
[Site "Caioba"]
[Date "2024.06.26"]
[Round "4.14"]
[White "Filgueiras, Nathan Felipe"]
[Black "Velasquez Joves, Rolando Jose"]
[Result "1-0"]
[ECO "A17"]
[WhiteElo "2294"]
[BlackElo "1966"]
[Annotator "RC"]
[PlyCount "81"]
[EventDate "2024.06.15"]
[EventCountry "BRA"]
[SourceTitle "playchess.com"]
[Source "ChessBase"]
[SourceQuality "1"]
[TimeControl "5400+30"]

1. c4 {[%emt 0:05:51]} Nf6 {[%emt 0:03:10]} 2. Nf3 {[%emt 0:00:40]} e6 {[%emt 0:02:06]} 3. Nc3 {[%emt 0:01:14]} d5 {[%emt 0:01:25]} 4. e3 {[%emt 0:00:04]} Be7 {[%emt 0:01:00]} 5. Qc2 {[%emt 0:04:22]} O-O {[%emt 0:02:26]} 6. b3 {[%emt 0:01:41]} c5 {[%emt 0:07:56]} 7. Be2 {[%emt 0:14:37]} Nc6 {[%emt 0:10:44]} 8. d3 {[%emt 0:06:26]} d4 {[%emt 0:06:02]} 9. exd4 {[%emt 0:00:30]} cxd4 {[%emt 0:00:50]} 10. Nb1 {[%emt 0:00:40]} h6 {[%emt 0:03:36]} 11. O-O {[%emt 0:02:09]} e5 {[%emt 0:02:34]} 12. a3 {[%emt 0:01:10]} a5 {[%emt 0:00:08]} 13. Re1 {[%emt 0:06:17]} Bf5 {[%emt 0:00:51]} 14. Nbd2 {[%emt 0:01:18]} Bh7 {[%emt 0:01:07]} 15. Bf1 {[%emt 0:05:11]} Nd7 {[%emt 0:04:46]} 16. Bb2 {[%emt 0:01:59]} Re8 {[%emt 0:09:39]} 17. g3 {[%emt 0:03:56]} Bf8 {[%emt 0:10:00]} 18. Bg2 {[%emt 0:01:08]} f5 {[%emt 0:05:11]} 19. Nf1 {[%emt 0:03:52]} Nf6 {[%emt 0:01:24]} 20. N3d2 {[%emt 0:04:55]} Kh8 {[%emt 0:03:41]} 21. h3 {[%emt 0:02:59]} Bc5 {[%emt 0:02:39]} 22. Nh2 {[%emt 0:02:21]} e4 {[%emt 0:03:31]} 23. dxe4 {[%emt 0:04:29]} fxe4 {[%emt 0:00:14]} 24. Nxe4 {[%emt 0:02:11]} Nxe4 {[%emt 0:02:18]} 25. Bxe4 {[%emt 0:00:33]} d3 {[%emt 0:02:46]} 26. Qd2 {[%emt 0:00:42]} Qd6 {[%emt 0:08:20]} 27. Bxh7 {[%emt 0:04:14]} Kxh7 {[%emt 0:03:00]} 28. Kg2 {[%emt 0:04:22]} Rad8 {[%emt 0:01:14]} 29. Ng4 {[%emt 0:03:31]} Kg8 {[%emt 0:00:24]} 30. Rad1 {[%emt 0:01:20]} Rxe1 {[%emt 0:00:40]} 31. Qxe1 {[%emt 0:01:34]} Nd4 {[%emt 0:01:40]} 32. Rxd3 {[%emt 0:04:41]} Qc6+ {[%emt 0:00:01]} 33. f3 {[%emt 0:00:19]} Re8 {[%emt 0:00:02]} 34. Ne5 {[%emt 0:01:01]} Qd6 {[%emt 0:01:29]} 35. Bxd4 {[%emt 0:00:47]} Bxd4 {[%emt 0:00:14]} 36. f4 {[%emt 0:00:03]} Qc5 {[%emt 0:00:48]} 37. Qe4 {[%emt 0:02:26]} Bxe5 {[%emt 0:00:19]} 38. fxe5 {[%emt 0:00:13]} Qxe5 {[%emt 0:00:35]} 39. Qxe5 {[%emt 0:00:13]} Rxe5 {[%emt 0:00:01]} 40. Kf3 {[%emt 0:01:15]} b5 {[%emt 0:00:37]} 41. Rd5 {[%emt 0:00:24]} 1-0

[Event "8th Brazilian Open SESC Caioba 2024"]
[Site "Caioba"]
[Date "2024.06.26"]
[Round "5.1"]
[White "Mekhitarian, Krikor Sevag"]
[Black "Cubas, Jose Fernando"]
[Result "1-0"]
[ECO "E07"]
[WhiteElo "2554"]
[BlackElo "2417"]
[Annotator "TA"]
[PlyCount "50"]
[EventDate "2024.06.15"]
[EventCountry "BRA"]
[SourceTitle "playchess.com"]
[Source "ChessBase"]
[SourceQuality "1"]
[TimeControl "5400+30"]

{[%evp 22,50,27,25,23,16,77,68,78,76,127,111,83,88,127,141,235,235,230,233,227,227,242,243,290,307,341,360,672,663,895]} 1. d4 {[%emt 0:00:02]} d5 {[%emt 0:01:39]} 2. c4 {[%emt 0:00:03]} e6 {[%emt 0:02:10]} 3. Nf3 {[%emt 0:03:24]} Nf6 {[%emt 0:00:38]} 4. Nc3 {[%emt 0:00:04]} Be7 {[%emt 0:01:46]} 5. g3 {[%emt 0:00:26]} O-O {[%emt 0:04:26]} 6. Bg2 {[%emt 0:00:11]} c6 {[%emt 0:01:29]} 7. O-O {[%emt 0:00:53]} Nbd7 {[%emt 0:00:36]} 8. Qd3 {[%emt 0:15:37]} b6 {[%emt 0:15:05]} 9. Rd1 {[%emt 0:06:41]} Bb7 {[%emt 0:07:46]} 10. Bf4 {[%emt 0:27:56]} Nh5 {[%emt 0:12:05]} 11. Bc1 {[%emt 0:03:44]} Nhf6 {[%emt 0:00:07][%cal Bh5f6,Bf6e8,Be8c7][%mdl 32]} 12. e4 {[%emt 0:04:47][%cal Be2e4,Be4e5][%mdl 32]} Rc8 {[%emt 0:01:57]} 13. b3 {[%emt 0:10:44]} Ba8 {[%emt 0:32:30]} (13... dxe4 $11 {remains equal.} 14. Nxe4 c5 15. Nxf6+ Nxf6) 14. e5 $16 {[%emt 0:00:53]} Ne8 {[%emt 0:00:03] White is slightly better.} 15. cxd5 {[%emt 0:02:50]} exd5 {[%emt 0:01:40]} ({Better is} 15... cxd5 16. a3 a5) 16. Ne2 {[%emt 0:02:24]} c5 {[%emt 0:00:54]} 17. Nf4 $36 {[%emt 0:00:39][%mdl 2048] [#] Hoping for e6. White is in control.} Nc7 {[%emt 0:01:25]} 18. Bh3 {[%emt 0:01:46] White is much more active.} cxd4 {[%emt 0:01:14]} (18... Bc6 $16 {was worth a try.} 19. Qf5 a5) 19. Qf5 $1 $18 {[%emt 0:01:19]} ({Not} 19. Qxd4 Nc5 $16) 19... Nc5 {[%emt 0:02:59]} 20. Qxc8 {[%emt 0:00:59]} Qxc8 {[%emt 0:00:01]} 21. Bxc8 {[%emt 0:00:06]} Rxc8 {[%emt 0:00:04]} 22. Nxd4 {[%emt 0:00:14]} ({Don't do} 22. Rxd4 Nb5) 22... f6 {[%emt 0:00:12]} 23. Nf5 {[%emt 0:00:39]} Bd8 {[%emt 0:00:26]} 24. Bb2 {[%emt 0:00:14]} Nd7 {[%emt 0:01:57] [#]} (24... g5 25. Nh5 fxe5 26. Bxe5 Ne8) 25. e6 {[%emt 0:00:16]} Nb8 {[%emt 0:00:08] Weighted Error Value: White=0.02 (flawless) /Black=0.61.  Mistake:       	---       	Black=4      Inaccurate:     	---       	Black=2      OK:         	White=7     	Black=3      Best:        	White=1     	---        Strong:       	White=1     	---} 1-0